bitfinex/quotes_ETHUSD_20250323
["timestamp","ask_amount","ask_price","bid_price","bid_amount"]
[1742754915938,2.97180615,1997.0,1996.7,1.1099063]
[1742754916240,2.97180615,1997.0,1996.8,5.00788]
[1742754917143,2.97180615,1997.0,1996.7,5.81607]
[1742754917607,3.33220615,1997.1,1996.8,5.00799]
[1742754917809,2.97180615,1997.2,1997.0,5.00751]
[1742754918722,2.97180615,1997.3,1997.1,5.00724]
[1742754918914,3.08766475,1997.4,1997.2,0.8079]
[1742754919114,3.08766475,1997.4,1997.1,6.008715]
[1742754919526,3.08766475,1997.4,1997.1,11.015815]
[1742754919718,3.08766475,1997.4,1997.1,6.008575]
[1742754920017,3.08766475,1997.4,1997.1,1.001475]
[1742754920224,8.45467475,1997.4,1997.0,32.30839]
[1742754920419,5.4828686,1997.4,1997.0,32.30839]
[1742754920623,2.97180615,1997.2,1997.0,32.30839]
[1742754921036,2.97180615,1997.2,1997.0,37.3157]
[1742754921232,2.97180615,1997.2,1997.0,32.30821]
[1742754921416,2.97180615,1997.2,1997.1,3.230821]
[1742754922212,2.97180615,1997.2,1997.1,8.238081]
[1742754925051,3.08766475,1997.4,1997.2,5.00696]
[1742754925264,3.08766475,1997.4,1997.1,8.238081]
[1742754930763,0.1158586,1997.4,1997.3,5.00675]
[1742754930972,0.1158586,1997.4,1997.3,7.422615]
[1742754931650,0.1158586,1997.4,1997.3,7.47267372]
[1742754931849,0.1158586,1997.4,1997.3,7.422615]
[1742754932441,0.1158586,1997.4,1997.3,12.099615]
[1742754932656,0.1158586,1997.4,1997.3,7.422615]
[1742754932837,0.1158586,1997.4,1997.3,12.099615]
[1742754934034,0.1158586,1997.4,1997.3,13.07913109]
[1742754942980,0.1158586,1997.4,1997.3,39.55213109]
[1742754948705,0.1158586,1997.4,1997.3,41.33386392]
[1742754950570,0.1158586,1997.4,1997.3,39.55213109]
[1742754953506,0.1158586,1997.4,1997.3,34.87513109]
[1742754953681,0.1158586,1997.4,1997.3,39.55013109]
[1742754954405,0.1158586,1997.4,1997.3,42.51936177]
[1742754962385,0.1158586,1997.4,1997.3,34.87513109]
[1742754962591,0.1158586,1997.4,1997.3,39.55013109]
[1742754970916,0.1158586,1997.4,1997.3,41.33137026]
[1742754975206,0.1158586,1997.4,1997.3,39.55013109]
[1742754975407,0.1158586,1997.4,1997.3,41.33137026]
[1742754984657,0.1158586,1997.4,1997.3,39.55013109]
[1742754985151,1.89709777,1997.4,1997.3,38.18323109]
[1742754985352,2.25749777,1997.4,1997.3,37.13326609]
[1742754985538,2.25749777,1997.4,1997.3,37.68326609]
[1742754986952,0.4762586,1997.4,1997.3,37.68326609]
[1742754987158,0.1158586,1997.4,1997.3,37.68326609]
[1742754990458,0.4762586,1997.4,1997.3,37.68326609]
[1742755004275,0.1158586,1997.4,1997.3,37.68326609]
[1742755005875,0.1158586,1997.4,1997.3,41.9522727]
[1742755006279,0.1158586,1997.4,1997.3,37.68326609]
[1742755013895,0.1158586,1997.4,1997.3,38.46906609]
[1742755024079,0.1158586,1997.4,1997.3,40.25030526]
[1742755024474,0.1158586,1997.4,1997.3,38.46906609]
[1742755025914,0.1158586,1997.4,1997.3,40.25030526]
[1742755026106,0.1158586,1997.4,1997.3,44.77601579]
[1742755026305,8.6e-06,1997.4,1997.3,44.77601579]
[1742755027819,8.6e-06,1997.4,1997.3,42.99477662]
[1742755028000,8.6e-06,1997.4,1997.3,42.99377662]
[1742755028315,8.6e-06,1997.4,1997.3,45.99377662]
[1742755029184,8.6e-06,1997.4,1997.3,47.77501579]
[1742755046746,3.93,1998.0,1997.9,5.00525]
[1742755046918,3.93,1998.0,1997.9,11.27836221]
[1742755047119,3.93,1998.0,1997.9,11.228317]
[1742755047440,0.01,1998.4,1998.3,5.00425]
[1742755047751,0.01,1998.4,1998.3,36.69125]
[1742755051157,0.01,1998.4,1998.3,37.71272492]
[1742755054649,0.01,1998.4,1998.3,40.52840426]
[1742755058552,1.79123917,1998.4,1998.3,40.52740426]
[1742755058760,1.79123917,1998.4,1998.3,37.71172492]
[1742755059645,0.01,1998.4,1998.3,37.71172492]
[1742755063786,0.01,1998.4,1998.3,33.04072492]
[1742755063986,0.01,1998.4,1998.3,37.71072492]
[1742755066582,0.01,1998.4,1998.3,36.68925]
[1742755067804,0.01,1998.4,1998.3,37.67807102]
[1742755067999,0.01,1998.4,1998.3,31.46925]
[1742755068185,1.79123917,1998.4,1998.3,36.13925]
[1742755068494,1.79123917,1998.4,1998.3,31.135]
[1742755068690,2.15163917,1998.4,1998.3,31.135]
[1742755068863,7.15563917,1998.4,1998.3,26.465]
[1742755069192,3.36759209,1998.4,1998.3,26.465]
[1742755069569,8.37159209,1998.4,1998.3,26.465]
[1742755070364,3.36759209,1998.4,1998.3,26.465]
[1742755072163,2.15163917,1998.4,1998.3,26.465]
[1742755078267,2.15163917,1998.4,1998.3,31.46925]
[1742755078612,0.01,1998.4,1998.3,31.46925]
[1742755079071,0.01,1998.4,1998.3,32.01925]
[1742755087224,0.3804,1999.2,1999.1,5.00225]
[1742755087533,1.80123917,1999.2,1999.0,9.67241]
[1742755087834,2.14163917,1999.1,1999.0,5.5525]
[1742755088032,2.14163917,1999.1,1998.9,5.00267]
[1742755088343,1.78123917,1999.0,1998.9,5.00267]
[1742755088540,1.78123917,1999.0,1998.8,5.00294]
[1742755088901,1.78123917,1999.0,1998.9,4.67]
[1742755092646,1.78123917,1999.0,1998.6,1.78420447]
[1742755092647,6.78384917,1999.0,1998.6,0.98340447]
[1742755092948,1.78123917,1998.7,1998.6,9.67341]
[1742755093245,1.78123917,1998.7,1998.5,5.00369]
[1742755093426,1.78123917,1998.6,1998.5,5.00369]
[1742755095009,2.96633113,1998.7,1998.5,5.00369]
[1742755095717,2.96633113,1998.7,1998.5,10.00733]
[1742755095936,3.32673113,1998.7,1998.4,1.02414315]
[1742755096135,2.96633113,1998.5,1998.3,36.688]
[1742755096305,2.96633113,1998.5,1998.3,37.68372087]
[1742755096505,2.96633113,1998.5,1998.3,36.688]
[1742755097625,2.96633113,1998.5,1998.3,36.138]
[1742755098311,3.32673113,1998.5,1998.3,36.138]
[1742755099753,3.32673113,1998.5,1998.3,31.134]
[1742755099949,3.32673113,1998.5,1998.3,36.13822]
[1742755100246,3.32673113,1998.5,1998.3,41.14234]
[1742755100453,3.32673113,1998.5,1998.3,36.13812]
[1742755100834,3.32673113,1998.5,1998.3,31.46912]
[1742755102084,3.32673113,1998.5,1998.3,26.465]
[1742755102847,3.32673113,1998.5,1998.3,31.46913]
[1742755108572,3.32673113,1998.5,1998.3,31.4691]
[1742755108976,8.62661424,1998.7,1998.3,31.4691]
[1742755109301,8.62661424,1998.7,1998.3,36.47325]
[1742755109702,8.62661424,1998.7,1998.4,5.00398]
[1742755111205,8.62661424,1998.7,1998.3,31.46917]
[1742755114209,8.62661424,1998.7,1998.3,31.46916]
[1742755115019,1.77994375,1998.5,1998.3,31.46916]
[1742755119301,1.77994375,1998.4,1998.3,5.00416]
[1742755120428,1.77994375,1998.5,1998.3,5.00416]
[1742755124516,2.14034375,1998.4,1998.2,31.128]
[1742755124826,1.77994375,1998.3,1998.2,26.459]
[1742755126509,1.77994375,1998.3,1998.2,31.4635]
[1742755126710,2.14034375,1998.4,1998.2,31.4635]
[1742755127549,2.14034375,1998.4,1998.2,26.459]
[1742755127749,1.77994375,1998.3,1998.2,26.459]
[1742755128344,2.14034375,1998.4,1998.2,26.459]
[1742755128548,2.14034375,1998.4,1998.2,31.46349]
[1742755128846,4.669,1999.1,1998.5,5.00375]
[1742755129145,1.77994375,1998.7,1998.4,5.00385]
[1742755129339,1.77994375,1998.6,1998.5,5.00369]
[1742755129834,1.77994375,1998.6,1998.4,5.00395]
[1742755131359,1.77994375,1998.6,1998.4,9.67295]
[1742755131824,1.77994375,1998.6,1998.4,14.67676]
[1742755132025,1.77994375,1998.6,1998.4,9.67281]
[1742755132224,1.77994375,1998.7,1998.5,5.00364]
[1742755135422,1.77994375,1998.6,1998.5,5.00364]
[1742755135627,1.77994375,1998.7,1998.5,5.00364]
[1742755137347,1.77994375,1998.7,1998.5,5.00362]
[1742755140076,1.77994375,1998.6,1998.5,5.00362]
[1742755140377,1.77994375,1998.7,1998.5,5.00362]
[1742755142177,1.77994375,1998.6,1998.4,36.1329]
[1742755142337,1.77994375,1998.6,1998.4,40.42192693]
[1742755142539,1.77994375,1998.6,1998.5,5.00375]
[1742755143859,0.3604,1999.0,1998.6,5.00331]
[1742755144038,1.77994375,1998.8,1998.6,5.00331]
[1742755144239,1.77994375,1998.7,1998.6,5.00331]
[1742755144572,1.77994375,1998.7,1998.6,5.503641]
[1742755146867,1.77994375,1998.7,1998.6,5.00331]
[1742755151196,5.00262,1999.0,1998.6,5.00331]
[1742755151398,1.77994375,1999.0,1998.9,5.00253]
[1742755151606,1.77994375,1999.0,1998.7,5.00313]
[1742755151907,1.77994375,1998.8,1998.7,5.585093]
[1742755153204,1.77994375,1998.8,1998.7,0.581973]
[1742755153412,1.77994375,1998.8,1998.6,5.00345]
[1742755153613,1.77994375,1998.7,1998.6,5.00345]
[1742755153833,1.77994375,1998.7,1998.5,5.00368]
[1742755154194,1.77994375,1998.6,1998.5,5.00368]
[1742755154621,1.77994375,1998.6,1998.5,9.67168]
[1742755156831,1.77994375,1998.6,1998.5,4.668]
[1742755158748,1.77994375,1998.6,1998.5,9.67175]
[1742755159046,1.77994375,1998.6,1998.5,4.668]
[1742755169884,1.77994375,1998.6,1998.4,31.46382]
[1742755170181,1.77994375,1998.5,1998.4,36.13182]
[1742755171084,0.3804,1999.2,1998.8,5.0028]
[1742755171374,1.77994375,1999.0,1998.9,5.00263]
[1742755174781,1.77994375,1999.0,1998.8,5.00296]
[1742755174959,1.77994375,1998.9,1998.8,5.00296]
[1742755189119,1.77994375,1998.9,1998.8,5.003]
[1742755192033,1.77994375,1998.9,1998.7,36.46125]
[1742755192187,1.77994375,1998.8,1998.7,31.45808]
[1742755197487,1.77994375,1998.9,1998.7,36.46114]
[1742755197830,1.77994375,1998.9,1998.7,31.45806]
[1742755198125,1.77994375,1998.9,1998.8,5.003]
[1742755199309,1.77994375,1999.0,1998.8,5.003]
[1742755199624,5.3824,1999.2,1998.8,10.4541]
[1742755199928,1.77994375,1999.0,1998.8,10.4541]
[1742755200289,1.77994375,1999.0,1998.8,10.454]
[1742755202130,1.77994375,1998.9,1998.8,10.454]
[1742755204232,1.77994375,1998.9,1998.8,9.6699]
[1742755205147,1.77994375,1998.9,1998.7,31.121]
[1742755205432,1.77994375,1998.8,1998.7,31.121]
[1742755205741,7.14334375,1998.8,1998.7,26.455]
[1742755206037,7.85767813,1998.8,1998.7,26.455]
[1742755206811,2.85467813,1998.8,1998.7,26.455]
[1742755208737,7.85767813,1998.8,1998.7,26.455]
[1742755208937,2.85467813,1998.8,1998.7,26.455]
[1742755210533,7.85767813,1998.8,1998.7,26.455]
[1742755210725,7.85767813,1998.8,1998.5,5.00362]
[1742755211027,1.77994375,1998.6,1998.5,5.00362]
[1742755211555,1.77994375,1998.6,1998.4,5.00393]
[1742755211715,1.77994375,1998.5,1998.4,5.00393]
[1742755213150,1.77994375,1998.6,1998.4,5.00393]
[1742755214666,1.77994375,1998.6,1998.4,10.00777]
[1742755214869,1.77994375,1998.6,1998.4,10.00767]
[1742755215973,1.77994375,1998.6,1998.4,5.00383]
[1742755216270,1.77994375,1998.6,1998.4,10.00765]
[1742755216969,1.77994375,1998.7,1998.5,5.76732]
[1742755218341,1.77994375,1998.7,1998.5,5.00372]
[1742755220577,1.77994375,1998.7,1998.4,10.00771]
[1742755220740,1.77994375,1998.6,1998.4,5.00382]
[1742755222892,1.77994375,1998.5,1998.4,5.00382]
[1742755223689,1.77994375,1998.6,1998.4,5.00382]
[1742755234008,1.77994375,1998.6,1998.3,5.00424]
[1742755234303,1.77994375,1998.6,1998.2,37.13976356]
[1742755234304,1.77994375,1998.4,1998.2,36.46243]
[1742755234506,1.77994375,1998.3,1998.2,36.46243]
[1742755234708,1.77994375,1998.4,1998.2,36.46243]
[1742755235484,1.77994375,1998.4,1998.2,31.458]
[1742755236308,1.77994375,1998.4,1998.2,36.46248]
[1742755237484,1.77994375,1998.3,1998.2,36.46248]
[1742755237788,2.45831813,1998.4,1998.2,31.458]
[1742755237991,1.77994375,1998.3,1998.2,31.458]
[1742755239294,2.45831813,1998.4,1998.2,31.458]
[1742755239494,2.45831813,1998.4,1998.2,36.46249]
[1742755241822,1.77994375,1998.3,1998.2,31.458]
[1742755242319,7.06606556,1998.3,1998.2,31.458]
[1742755242483,2.06181556,1998.3,1998.2,31.458]
[1742755245410,7.06606556,1998.3,1998.2,31.458]
[1742755246329,2.06181556,1998.3,1998.2,31.458]
[1742755246999,7.06606556,1998.3,1998.2,31.458]
[1742755247735,2.06181556,1998.3,1998.2,31.458]
[1742755249032,2.06181556,1998.3,1998.2,5.0]
[1742755255359,7.06606556,1998.3,1998.2,5.0]
[1742755261163,2.06181556,1998.3,1998.2,5.0]
[1742755263662,7.06606556,1998.3,1998.2,5.0]
[1742755264171,2.06181556,1998.3,1998.2,5.0]
[1742755264670,7.06606556,1998.3,1998.2,5.0]
[1742755267696,10.42646556,1998.3,1998.2,5.0]
[1742755267987,12.20640931,1998.3,1998.2,5.0]
[1742755270538,5.42221556,1998.3,1998.2,5.0]
[1742755270826,10.42646556,1998.3,1998.2,5.0]
[1742755271724,12.20640931,1998.3,1998.2,5.0]
[1742755271897,10.42646556,1998.3,1998.2,5.0]
[1742755272096,12.20640931,1998.3,1998.2,5.0]
[1742755274031,12.57360002,1998.3,1998.2,5.0]
[1742755276327,5.00529,1997.9,1997.6,26.464]
[1742755276625,1.77994375,1997.7,1997.6,26.464]
[1742755284431,1.77994375,1997.7,1997.5,10.45068]
[1742755285906,1.77994375,1997.6,1997.5,10.45068]
[1742755291414,1.77994375,1997.7,1997.6,5.006]
[1742755291608,1.77994375,1998.0,1997.8,0.7761]
[1742755291839,1.77994375,1998.0,1997.9,5.00501]
[1742755292314,1.77994375,1998.0,1997.8,5.78154]
[1742755292517,1.77994375,1997.9,1997.8,5.78154]
[1742755292724,1.77994375,1997.9,1997.8,0.7761]
[1742755296425,8.0045,1998.2,1997.8,6.860188]
[1742755296754,1.77994375,1998.0,1997.8,6.860188]
[1742755297146,1.77994375,1998.0,1997.8,11.865578]
[1742755297345,1.77994375,1998.0,1997.8,6.860188]
[1742755297656,1.77994375,1998.1,1997.9,5.00525]
[1742755297858,1.77994375,1998.0,1997.8,6.860118]
[1742755298158,1.77994375,1998.1,1997.8,5.78138]
[1742755298756,1.77994375,1998.1,1997.8,10.78674]
[1742755298968,1.77994375,1998.0,1997.8,5.78138]
[1742755300662,4.77994375,1998.1,1997.8,5.78138]
[1742755300959,1.77994375,1998.0,1997.8,5.78138]
[1742755306260,3.0,1998.1,1997.8,5.78138]
[1742755306652,1.77994375,1998.0,1997.8,5.78138]
[1742755312884,1.77994375,1998.0,1997.8,0.7761]
[1742755313062,1.77994375,1998.0,1997.8,5.7815]
[1742755316179,1.77994375,1998.0,1997.8,5.78142]
[1742755316667,1.77994375,1998.0,1997.8,10.78681]
[1742755316869,1.77994375,1998.0,1997.8,5.78142]
[1742755318785,0.57354066,1998.4,1997.8,4.001042]
[1742755318947,1.77994375,1998.3,1998.0,5.79754]
[1742755319654,1.77994375,1998.3,1998.0,0.7927]
[1742755319885,1.77994375,1998.2,1998.0,0.7927]
[1742755330005,1.77994375,1998.1,1997.8,27.2458]
[1742755330203,3.0,1998.2,1997.8,26.467]
[1742755330204,1.77994375,1997.9,1997.8,26.467]
[1742755330414,10.14559375,1997.9,1997.8,26.467]
[1742755332988,5.00629,1997.5,1997.3,4.664]
[1742755333375,1.77994375,1997.5,1997.3,4.664]
[1742755333987,9.78601375,1997.6,1997.3,4.664]
[1742755334206,8.00607,1997.6,1997.3,4.624]
[1742755334399,1.77994375,1997.5,1997.3,4.624]
[1742755335394,6.78621375,1997.5,1997.3,4.624]
[1742755336678,9.78601375,1997.6,1997.3,4.624]
[1742755336922,0.3604,1997.8,1997.3,4.624]
[1742755337215,3.0,1997.7,1997.4,5.78519]
[1742755337416,4.77994375,1997.7,1997.4,5.78519]
[1742755338138,4.77994375,1997.7,1997.4,10.79154]
[1742755338292,6.78551375,1997.8,1997.4,5.78515]
[1742755338488,6.78551375,1997.8,1997.5,5.00625]
[1742755338800,4.77994375,1997.8,1997.5,5.00625]
[1742755339148,4.77994375,1997.8,1997.5,5.00606]
[1742755339331,4.77994375,1997.8,1997.4,5.78524]
[1742755339528,4.77994375,1997.8,1997.4,10.79159]
[1742755340121,4.77994375,1997.8,1997.5,5.00621]
[1742755340589,4.77994375,1997.8,1997.5,4.96621]
[1742755341292,0.3604,1998.0,1997.5,0.7715]
[1742755341491,1.77994375,1997.9,1997.6,5.00583]
[1742755341829,5.36494,1998.2,1997.7,10.44224]
[1742755342034,1.77994375,1998.0,1997.7,10.44209]
[1742755342414,4.77994375,1998.0,1997.7,10.44209]
[1742755343333,3.0,1998.0,1997.7,10.44209]
[1742755343934,4.77994375,1998.1,1997.8,5.00544]
[1742755344298,4.77994375,1998.1,1997.7,10.44209]
[1742755344498,4.77994375,1998.1,1997.7,14.6916613]
[1742755345451,4.77994375,1998.1,1997.7,19.6972313]
[1742755345747,4.77994375,1998.1,1997.8,5.00545]
[1742755351926,4.77994375,1998.1,1997.7,19.6973713]
[1742755353956,4.77994375,1998.1,1997.7,19.6972513]
[1742755354527,4.77994375,1998.1,1997.7,19.6972413]
[1742755356242,4.77994375,1998.1,1997.7,10.44207]
[1742755356444,4.77994375,1998.1,1997.7,15.44765]
[1742755357586,4.77994375,1998.1,1997.7,41.91565]
[1742755358281,4.77994375,1998.1,1997.7,36.91007]
[1742755358739,9.78473375,1998.1,1997.7,36.91007]
[1742755359781,1.77994375,1998.1,1997.7,36.91007]
[1742755360680,1.77994375,1998.1,1997.8,5.00544]
[1742755361377,10.14492375,1998.2,1997.8,5.00544]
[1742755361676,7.14486375,1998.2,1997.8,5.00544]
[1742755361900,3.0,1998.1,1997.8,5.00544]
[1742755362571,3.0,1998.1,1997.8,26.468]
[1742755362767,5.14034375,1998.2,1997.8,31.47335]
[1742755362974,0.3604,1998.2,1997.8,31.47348]
[1742755363171,0.3604,1998.2,1997.9,5.00517]
[1742755363572,0.3604,1998.2,1997.9,10.01029]
[1742755363772,0.3604,1998.2,1997.9,5.00512]
[1742755363991,0.03,1998.4,1997.9,6.78519375]
[1742755364156,0.03,1998.4,1998.2,5.0044]
[1742755365517,0.03,1998.4,1998.2,5.0045]
[1742755365826,0.03,1998.4,1998.2,5.00446]
[1742755366413,0.03,1998.4,1998.2,10.00879]
[1742755366617,0.03,1998.4,1998.2,10.00871]
[1742755367234,0.03,1998.4,1998.3,5.00425]
[1742755367522,0.03,1998.4,1998.3,7.57669375]
[1742755369390,0.03,1998.4,1998.3,7.62672781]
[1742755377643,0.03,1998.4,1998.3,34.08672781]
[1742755377830,0.03,1998.4,1998.3,34.03669375]
[1742755378009,0.03,1998.4,1998.3,38.02271208]
[1742755395975,0.03,1998.4,1998.3,38.39886006]
[1742755397549,0.3604,1999.0,1998.9,5.00261]
[1742755397780,0.3604,1999.0,1998.9,9.66361]
[1742755398359,0.3804,1999.2,1998.9,9.66372]
[1742755398579,0.3804,1999.2,1999.0,5.0024]
[1742755398875,2.16034375,1999.2,1999.0,5.0024]
[1742755399401,0.3804,1999.2,1999.0,5.0024]
[1742755400189,2.16034375,1999.2,1999.0,5.0024]
[1742755404687,2.16034375,1999.2,1998.9,36.11972]
[1742755405637,2.16034375,1999.2,1998.9,41.12235]
[1742755406014,2.16034375,1999.2,1998.9,36.11963]
[1742755408510,0.3804,1999.2,1998.9,36.11963]
[1742755408705,2.16034375,1999.2,1998.9,36.11963]
[1742755409541,2.16034375,1999.2,1998.9,41.12222]
[1742755409717,2.16034375,1999.2,1998.9,45.33303736]
[1742755411641,2.16034375,1999.2,1998.9,40.33040736]
[1742755411844,2.16034375,1999.2,1998.9,45.33300736]
[1742755412448,2.16034375,1999.2,1998.9,40.33040736]
[1742755412752,2.16034375,1999.2,1998.9,36.11959]
[1742755413442,5.16034375,1999.2,1998.9,36.11959]
[1742755416059,0.3804,1999.2,1998.9,41.12216]
[1742755416766,2.16034375,1999.2,1998.9,36.11957]
[1742755417060,5.16034375,1999.2,1998.9,36.11957]
[1742755421060,1.77994375,1999.1,1998.9,31.117]
[1742755425879,1.77994375,1999.1,1998.9,36.11974]
[1742755426097,2.16034375,1999.2,1998.9,36.11974]
[1742755426385,2.16034375,1999.2,1998.9,39.21474781]
[1742755426900,0.02,1999.2,1999.1,7.58409375]
[1742755427464,0.02,1999.2,1999.1,5.85416499]
[1742755427978,0.02,1999.2,1999.1,5.80415]
[1742755428179,0.02,1999.2,1999.1,6.884803]
[1742755430387,0.02,1999.2,1999.1,7.90742552]
[1742755433594,0.02,1999.2,1999.1,7.86742552]
[1742755434093,0.02,1999.2,1999.1,6.042903]
[1742755434294,0.02,1999.2,1999.0,5.00238]
[1742755434462,0.02,1999.2,1999.1,5.00225]
[1742755435313,0.02,1999.2,1999.1,9.66125]
[1742755435589,0.02,1999.2,1999.1,5.00225]
[1742755435797,0.02,1999.2,1999.1,9.66125]
[1742755436196,0.02,1999.2,1999.1,36.11125]
[1742755443470,0.02,1999.2,1999.1,31.109]
[1742755444209,0.02,1999.2,1999.1,31.108]
[1742755444904,0.02,1999.2,1999.1,26.45]
[1742755444905,7.16234375,1999.2,1999.1,26.45]
[1742755445195,2.84051413,1999.2,1999.1,26.45]
[1742755445663,7.84251413,1999.2,1999.1,26.45]
[1742755445871,10.84251413,1999.2,1999.1,26.45]
[1742755450699,10.84251413,1999.2,1998.9,4.658]
[1742755450903,1.77994375,1999.0,1998.9,4.658]
[1742755452602,1.77994375,1999.0,1998.8,31.108]
[1742755452798,1.77994375,1998.9,1998.8,31.108]
[1742755453170,7.14309375,1998.9,1998.8,26.45]
[1742755453504,11.15740313,1998.9,1998.8,26.45]
[1742755453709,12.93734688,1998.9,1998.8,26.45]
[1742755454079,12.93734688,1998.9,1998.3,4.658]
[1742755454080,5.36417,1998.5,1998.3,4.658]
[1742755454382,1.77994375,1998.4,1998.3,4.658]
[1742755455704,4.77994375,1998.4,1998.3,4.658]
[1742755455906,3.0,1998.4,1998.3,4.658]
[1742755456607,4.77994375,1998.4,1998.3,4.658]
[1742755459717,3.0,1998.4,1998.3,4.658]
[1742755462421,4.77994375,1998.4,1998.3,4.658]
[1742755467020,5.79435512,1998.4,1998.3,4.658]
[1742755468212,4.77994375,1998.4,1998.3,4.658]
[1742755468392,3.0,1998.4,1998.3,4.658]
[1742755468916,4.77994375,1998.4,1998.3,4.658]
[1742755470328,1.77994375,1998.6,1998.3,9.71217239]
[1742755470515,4.77994375,1998.7,1998.4,5.79688]
[1742755470719,1.77994375,1998.6,1998.4,5.79688]
[1742755474029,1.77994375,1998.6,1998.4,6.78684701]
[1742755474927,1.77994375,1998.6,1998.4,5.79688]
[1742755475139,1.77994375,1998.5,1998.3,9.6622]
[1742755475630,1.77994375,1998.5,1998.3,10.66770259]
[1742755477235,1.77994375,1998.5,1998.3,37.12770259]
[1742755479644,1.77994375,1998.4,1998.3,31.118]
[1742755479821,1.77994375,1998.4,1998.3,26.46]
[1742755484447,5.75831512,1998.4,1998.3,26.46]
[1742755484839,4.77994375,1998.4,1998.3,26.46]
[1742755486807,4.77994375,1998.4,1998.2,4.659]
[1742755488646,4.77994375,1998.4,1998.2,9.66349]
[1742755489421,4.77994375,1998.4,1998.2,4.659]
[1742755490738,1.77994375,1998.3,1998.2,4.659]
[1742755492246,3.0,1998.4,1998.2,4.659]
[1742755492545,4.77994375,1998.4,1998.2,9.6635]
[1742755494446,5.00362,1998.6,1998.2,9.6635]
[1742755494447,1.01430938,1998.9,1998.3,0.7711]
[1742755494613,1.77994375,1998.9,1998.5,5.00368]
[1742755494818,1.77994375,1998.8,1998.6,4.659]
[1742755495222,1.77994375,1998.9,1998.6,10.43349]
[1742755495550,1.77994375,1999.0,1998.7,5.00306]
[1742755495763,1.77994375,1999.1,1998.8,5.00286]
[1742755495967,1.77994375,1999.0,1998.8,5.00286]
[1742755498063,1.77994375,1999.0,1998.8,31.46286]
[1742755498253,1.77994375,1999.0,1998.8,26.46]
[1742755500064,1.77994375,1999.0,1998.8,31.46295]
[1742755501365,1.77994375,1999.0,1998.8,26.46]
[1742755501544,1.77994375,1999.0,1998.8,31.463]
[1742755502266,1.77994375,1999.0,1998.8,26.46]
[1742755502471,1.77994375,1999.0,1998.8,31.46299]
[1742755502640,1.77994375,1998.9,1998.8,31.46299]
[1742755502839,1.77994375,1998.9,1998.8,35.21029355]
[1742755503563,1.77994375,1998.9,1998.8,30.20730355]
[1742755509684,1.77994375,1998.9,1998.8,26.46]
[1742755512482,1.77994375,1998.9,1998.7,26.456]
[1742755512785,1.77994375,1998.8,1998.7,26.456]
[1742755513488,1.77994375,1998.8,1998.7,31.113]
[1742755514254,1.77994375,1998.8,1998.7,26.456]
[1742755514588,2.45821313,1998.8,1998.7,26.456]
[1742755516096,7.46121313,1998.8,1998.7,26.456]
[1742755516464,2.45821313,1998.8,1998.7,26.456]
[1742755517158,12.60155688,1998.8,1998.7,26.456]
[1742755517571,8.36441,1998.4,1998.1,26.456]
[1742755517772,1.77994375,1998.2,1998.1,26.456]
[1742755518994,9.78444375,1998.2,1998.1,26.456]
[1742755520903,10.97284616,1998.2,1998.1,26.456]
[1742755521601,5.96834616,1998.2,1998.1,26.456]
[1742755522993,3.0,1998.2,1998.1,26.456]
[1742755523185,3.0,1998.2,1998.1,31.4606]
[1742755524814,2.96834616,1998.3,1998.1,36.46516]
[1742755525014,5.96834616,1998.5,1998.2,5.0045]
[1742755525309,7.10157278,1998.5,1998.1,31.46056]
[1742755525874,7.10157278,1998.5,1998.1,36.46521]
[1742755526080,5.96834616,1998.5,1998.2,5.00446]
[1742755526881,5.96834616,1998.5,1998.3,5.00422]
[1742755527081,5.96834616,1998.5,1998.2,9.66246]
[1742755527477,5.96834616,1998.5,1998.2,9.66235]
[1742755527694,5.96834616,1998.5,1998.3,5.76227]
[1742755528067,2.96834616,1998.7,1998.3,10.76641]
[1742755528274,3.0,1998.6,1998.3,5.7623]
[1742755529313,2.96834616,1998.5,1998.3,0.7581]
[1742755530612,2.96834616,1998.5,1998.3,5.76226]
[1742755531503,0.19331457,1998.4,1998.3,5.76226]
[1742755532909,0.19331457,1998.4,1998.3,7.40345908]
[1742755533334,5.96834616,1998.7,1998.3,12.40761908]
[1742755533641,0.19331457,1998.4,1998.3,7.40345908]
[1742755533930,0.19331457,1998.4,1998.3,7.40332908]
[1742755534130,5.96834616,1998.7,1998.3,12.40735908]
[1742755534309,0.19331457,1998.4,1998.3,12.40735908]
[1742755534507,0.3604,1999.0,1998.6,5.78846]
[1742755534706,2.96834616,1999.0,1998.7,9.66115]
[1742755535020,0.19684546,1998.9,1998.7,4.658]
[1742755535220,3.19684546,1998.9,1998.7,4.658]
[1742755535420,3.0,1998.9,1998.7,4.658]
[1742755535610,2.96834616,1999.0,1998.7,9.66125]
[1742755535997,0.1972788,1998.9,1998.7,9.66125]
[1742755536445,3.1972788,1998.9,1998.7,9.66125]
[1742755538245,3.1972788,1998.9,1998.7,4.658]
[1742755545066,1.77961877,1998.8,1998.7,4.658]
[1742755545360,1.97636255,1998.8,1998.7,4.658]
[1742755545524,0.19674378,1998.8,1998.7,4.658]
[1742755545724,4.77961877,1998.9,1998.7,4.658]
[1742755545930,0.19674378,1998.8,1998.7,9.66125]
[1742755546137,1.77961877,1998.9,1998.7,14.66437]
[1742755546447,0.19674378,1998.8,1998.7,9.66112]
[1742755546769,1.77961877,1998.9,1998.7,9.66112]
[1742755547073,0.19674378,1998.8,1998.7,9.66112]
[1742755547436,1.77961877,1998.9,1998.7,9.66112]
[1742755547737,0.19674378,1998.8,1998.7,9.66112]
[1742755547937,1.77961877,1998.9,1998.7,9.66112]
[1742755548238,0.19674378,1998.8,1998.7,9.66112]
[1742755548954,1.77961877,1998.9,1998.7,9.66112]
[1742755549169,0.19674378,1998.8,1998.7,9.66112]
[1742755549579,1.77961877,1998.9,1998.7,9.66112]
[1742755549772,0.19674378,1998.8,1998.7,9.66112]
[1742755550070,1.77961877,1998.9,1998.7,9.66112]
[1742755550239,0.19724703,1998.8,1998.7,9.66112]